bitfinex-derivatives/quotes_BNBF0:USTF0_20250511
["timestamp","ask_amount","ask_price","bid_price","bid_amount"]
[1746954096104,0.30503149,655.67,655.03,1.17648759]
[1746954096608,0.30503149,655.67,655.04,1.17648759]
[1746954096807,0.30503149,655.67,655.05,0.30526345]
[1746954097003,0.30503149,655.67,655.06,1.48175104]
[1746954097205,0.30503149,655.67,655.06,1.17648759]
[1746954097411,0.30503149,655.67,655.07,0.30524243]
[1746954097611,0.30503149,655.67,655.08,1.17648759]
[1746954097910,0.30503149,655.67,655.09,1.17648759]
[1746954098609,1.97513378,656.36,655.1,1.48172171]
[1746954098809,0.30472011,656.34,655.11,0.30523412]
[1746954099011,0.30472011,656.34,655.12,1.48170426]
[1746954099309,0.30472011,656.34,655.13,0.30521442]
[1746954099509,0.30472011,656.34,655.12,1.17648759]
[1746954099510,0.30472011,656.34,655.14,0.30520229]
[1746954099812,0.30472011,656.34,655.15,1.17648759]
[1746954100211,0.30472011,656.34,655.16,1.17648759]
[1746954100411,0.30472011,656.34,655.17,1.17648759]
[1746954100812,0.30472011,656.34,655.18,0.30518677]
[1746954101005,0.30472011,656.34,655.19,0.30518449]
[1746954101212,0.30472011,656.34,655.2,0.30518449]
[1746954101512,0.30472011,656.34,655.21,1.48167208]
[1746954101713,0.30472011,656.34,655.22,0.30518449]
[1746954101914,0.30472011,656.34,655.21,1.17648759]
[1746954102414,0.30472011,656.34,655.22,1.17648759]
[1746954102913,0.30472011,656.34,655.23,1.17648759]
[1746954103414,0.30472011,656.34,655.24,1.17648759]
[1746954104013,0.30472011,656.34,655.25,1.17648759]
[1746954104515,0.30472011,656.34,655.26,1.17648759]
[1746954105015,0.30472011,656.34,655.27,1.17648759]
[1746954105911,0.30472011,656.34,654.98,0.544]
[1746954106116,0.30472011,656.34,654.99,0.30516315]
[1746954106316,0.30472011,656.34,655.0,1.47819763]
[1746954106615,0.30472011,656.34,655.01,0.30516315]
[1746954106912,0.30472011,656.34,655.02,1.47819763]
[1746954107111,0.30472011,656.34,655.03,0.30516315]
[1746954107315,0.30472011,656.34,655.04,0.30516315]
[1746954107516,0.30472011,656.34,655.05,0.30516315]
[1746954107816,0.30472011,656.34,655.06,1.47819763]
[1746954108015,0.30472011,656.34,655.07,0.30516315]
[1746954108217,0.30472011,656.34,655.08,0.30516315]
[1746954108417,0.30472011,656.34,655.09,0.30516315]
[1746954108717,0.30472011,656.34,655.09,1.17303448]
[1746954109116,0.30472011,656.34,655.1,1.17303448]
[1746954109718,0.30472011,656.34,655.11,1.17303448]
[1746954110820,0.30472011,656.34,655.12,1.17303448]
[1746954111213,0.30472011,656.34,655.13,1.17303448]
[1746954112220,0.30472011,656.34,655.14,1.17303448]
[1746954113021,0.30472011,656.34,655.15,1.17303448]
[1746954113525,0.30472011,656.34,654.98,0.544]
[1746954113724,0.30472011,656.34,654.99,0.30516334]
[1746954114021,0.30472011,656.34,655.0,1.47695032]
[1746954114220,0.30472011,656.34,655.01,0.30516334]
[1746954114421,0.30472011,656.34,655.01,1.47695032]
[1746954114621,0.30472011,656.34,655.02,0.30516334]
[1746954114923,0.30472011,656.34,655.03,1.17178698]
[1746954115123,0.30472011,656.34,655.04,0.30516334]
[1746954115426,0.30472011,656.34,655.05,0.30516385]
[1746954115622,0.30472011,656.34,655.06,0.30516385]
[1746954115827,0.30472011,656.34,655.05,1.17178698]
[1746954116125,0.30472011,656.34,655.06,0.30516297]
[1746954116420,0.30472011,656.34,655.07,1.17178698]
[1746954117121,0.30472011,656.34,655.08,1.17178698]
[1746954117822,0.30472011,656.34,655.09,0.30516171]
[1746954118022,0.30472011,656.34,655.1,0.30516171]
[1746954118220,0.30472011,656.34,655.11,0.30516171]
[1746954118425,0.30472011,656.34,655.09,1.17178698]
[1746954118626,0.30472011,656.34,655.1,1.47694928]
[1746954118826,0.30472011,656.34,655.11,0.3051623]
[1746954119026,0.30472011,656.34,655.1,1.17178698]
[1746954119227,0.30472011,656.34,655.11,0.30516202]
[1746954119430,0.30472011,656.34,654.9,1.17178698]
[1746954119727,0.30472011,656.34,654.91,1.47694865]
[1746954119927,0.30472011,656.34,654.92,0.30516167]
[1746954120128,0.30472011,656.34,654.93,0.30516167]
[1746954120328,0.30472011,656.34,654.94,0.30516167]
[1746954120538,0.30472011,656.34,654.95,0.30516167]
[1746954120725,0.30472011,656.34,654.91,1.17178698]
[1746954120927,0.30472011,656.34,654.96,1.17178698]
[1746954121124,0.30472011,656.34,654.97,0.30516241]
[1746954121329,0.30472011,656.34,654.98,0.30516241]
[1746954121531,0.30472011,656.34,654.99,0.30516241]
[1746954121730,0.30472011,656.34,655.0,0.30516241]
[1746954121930,0.30472011,656.34,655.01,0.30516241]
[1746954122231,0.30472011,656.34,654.98,1.17178698]
[1746954122433,0.30472011,656.34,655.02,1.17178698]
[1746954122635,0.30472011,656.34,655.03,1.47694922]
[1746954122831,0.30472011,656.34,655.04,0.30516224]
[1746954123327,0.30472011,656.34,655.05,1.17178698]
[1746954123528,0.30472011,656.34,655.06,0.30516224]
[1746954123735,0.30472011,656.34,655.07,1.17178698]
[1746954124032,0.30472011,656.34,655.08,0.30516224]
[1746954124532,0.30472011,656.34,655.09,1.17178698]
[1746954124933,0.30472011,656.34,654.94,1.17178698]
[1746954125128,0.30472011,656.34,654.93,0.26533693]
[1746954125129,0.30472011,656.34,654.95,1.47695155]
[1746954125334,0.30472011,656.34,654.96,0.30516457]
[1746954125533,0.30472011,656.34,654.97,0.30516457]
[1746954125834,0.30472011,656.34,654.98,1.47695155]
[1746954126137,0.30472011,656.34,654.99,1.47695069]
[1746954126330,0.30472011,656.34,655.0,0.30516371]
[1746954126533,0.30472011,656.34,655.01,0.30516371]
[1746954126735,0.30472011,656.34,655.02,0.30516371]
[1746954126930,0.30472011,656.34,655.0,1.17178698]
[1746954126931,0.30472011,656.34,655.03,1.47695069]
[1746954127135,0.30472011,656.34,655.04,0.30516371]
[1746954127334,0.30472011,656.34,655.04,1.47695069]
[1746954127635,0.30472011,656.34,655.05,0.30516371]
[1746954127935,0.30472011,656.34,655.06,1.17178698]
[1746954128236,0.30472011,656.34,655.07,0.30516371]
[1746954128733,0.30472011,656.34,655.08,1.17178698]
[1746954128933,0.30472011,656.34,655.09,0.30516371]
[1746954129132,0.30472011,656.34,655.1,0.30516371]
[1746954129436,0.30472011,656.34,655.11,1.17178698]
[1746954129937,0.30472011,656.34,655.12,1.17178698]
[1746954130237,0.30472011,656.34,655.13,1.17178698]
[1746954130743,0.30472011,656.34,655.14,1.17178698]
[1746954130932,0.30472011,656.34,655.15,1.17178698]
[1746954131537,0.30472011,656.34,655.16,1.17178698]
[1746954131938,0.30472011,656.34,655.17,1.17178698]
[1746954132437,0.30472011,656.34,654.91,0.544]
[1746954132638,0.30472011,656.34,654.92,0.30516329]
[1746954132836,0.30472011,656.34,654.93,0.30516329]
[1746954133034,0.30472011,656.34,654.94,1.47678522]
[1746954133241,0.30472011,656.34,654.95,0.30516329]
[1746954133539,0.30472011,656.34,654.96,1.17162193]
[1746954133736,0.30472011,656.34,654.97,0.30516329]
[1746954134038,0.30472011,656.34,654.98,1.17162193]
[1746954134238,0.30472011,656.34,654.99,0.30516329]
[1746954134538,0.30472011,656.34,655.0,1.17162193]
[1746954134938,0.30472011,656.34,655.01,0.30516796]
[1746954135138,0.30472011,656.34,655.02,0.30516796]
[1746954135434,0.30472011,656.34,655.03,0.30516796]
[1746954135635,0.30472011,656.34,655.04,0.30516796]
[1746954135838,0.30472011,656.34,655.05,0.30516796]
[1746954136040,0.30472011,656.34,655.06,0.30516796]
[1746954136240,0.30472011,656.34,655.07,0.30516796]
[1746954136442,0.30472011,656.34,655.08,0.30516796]
[1746954136740,0.30472011,656.34,655.09,1.17162193]
[1746954137537,0.30472011,656.34,655.0,1.17162193]
[1746954137736,0.26534502,656.33,655.03,0.26534502]
[1746954137936,0.26534502,656.33,655.04,0.3051672]
[1746954138140,0.26534502,656.33,655.05,0.3051672]
[1746954138339,0.26534502,656.33,655.04,1.17162193]
[1746954138541,0.3047294,656.32,655.05,0.3051672]
[1746954138742,0.3047294,656.32,655.04,1.17162193]
[1746954138939,0.3047294,656.32,655.06,1.17162193]
[1746954139344,0.3047294,656.32,655.04,1.17162193]
[1746954139542,0.3047294,656.32,655.05,0.30516761]
[1746954139743,0.3047294,656.32,655.06,1.47678911]
[1746954139945,0.3047294,656.32,655.06,1.17162193]
[1746954140239,0.3047294,656.32,655.04,1.17162193]
[1746954140443,0.3047294,656.32,655.05,0.30516754]
[1746954140646,0.26536121,656.31,655.06,0.30516754]
[1746954140837,0.26536121,656.31,655.04,1.17162193]
[1746954141545,0.26536121,656.31,655.03,0.26536121]
[1746954146344,0.3047294,656.32,654.91,0.544]
[1746954146649,0.2654442,656.3,654.91,0.544]
[1746954152354,0.3047294,656.32,654.91,0.544]
[1746954152552,0.26547255,656.29,654.91,0.544]
[1746954152853,0.30475261,656.27,654.91,0.544]
[1746954161758,0.26547559,656.26,654.91,0.544]
[1746954162453,0.30476654,656.24,654.91,0.544]
[1746954167667,0.26547559,656.23,654.91,0.544]
[1746954167866,0.30478048,656.21,654.91,0.544]
[1746954170370,2.27991426,656.21,654.91,0.544]
[1746954170670,0.26548166,656.2,654.91,0.544]
[1746954170872,0.30479441,656.18,654.91,0.544]
[1746954172874,1.97513378,655.95,654.91,0.544]
[1746954173071,0.30491058,655.93,654.91,0.544]
[1746954192790,0.30491058,655.93,654.92,1.16879734]
[1746954192989,0.30491058,655.93,654.91,0.544]
[1746954193190,0.30491058,655.93,653.75,0.96606346]
[1746954193390,0.30491058,655.93,654.7,0.3052394]
[1746954193591,0.30491058,655.93,654.71,0.3052394]
[1746954193786,0.30491058,655.93,654.72,0.3052394]
[1746954194085,0.30491058,655.93,654.73,1.16905008]
[1746954194290,0.30491058,655.93,654.74,0.30524398]
[1746954194492,0.30491058,655.93,654.75,0.30524398]
[1746954194691,0.30491058,655.93,654.76,1.47429406]
[1746954194894,0.30491058,655.93,654.77,0.30524398]
[1746954195192,0.30491058,655.93,654.78,0.30524398]
[1746954195392,0.30491058,655.93,654.79,0.30524398]
[1746954195589,0.30491058,655.93,654.8,1.47429406]
[1746954195791,0.30491058,655.93,654.81,0.30524398]
[1746954195987,0.30491058,655.93,654.82,0.30524398]
[1746954196292,0.30491058,655.93,654.83,1.16905008]
[1746954196591,0.30491058,655.93,654.7,1.16905008]
[1746954196791,0.30491058,655.93,654.71,0.30525266]
[1746954197090,0.30491058,655.93,654.72,0.30525266]
[1746954197288,0.30491058,655.93,654.73,1.47430274]
[1746954197487,0.30491058,655.93,654.74,0.30525266]
[1746954197692,0.30491058,655.93,654.74,1.47430274]
[1746954197887,0.30491058,655.93,654.75,0.30525266]
[1746954198194,0.30491058,655.93,654.76,1.16905008]
[1746954198394,0.30491058,655.93,654.77,0.30525266]
[1746954198696,0.30491058,655.93,654.78,1.47646562]
[1746954198889,0.30491058,655.93,654.79,0.30525809]
[1746954199093,0.30491058,655.93,654.8,0.30525809]
[1746954199290,0.30491058,655.93,654.81,1.47646562]
[1746954199595,0.30491058,655.93,654.82,0.30525809]
[1746954199795,0.30491058,655.93,654.83,0.30525809]
[1746954199991,0.30491058,655.93,654.84,0.30525809]
[1746954200192,0.30491058,655.93,654.85,1.47646562]
[1746954200395,0.30491058,655.93,654.86,1.47646562]
[1746954200690,0.30491058,655.93,654.87,0.30525809]
[1746954200890,0.30491058,655.93,654.88,1.47646562]
[1746954201093,0.30491058,655.93,654.89,0.30525809]
[1746954201292,0.30491058,655.93,654.9,0.30525809]
[1746954201490,0.30491058,655.93,654.91,0.30525809]
[1746954201794,0.30491058,655.93,654.92,1.17120753]
[1746954201995,0.30491058,655.93,654.79,1.17120753]
[1746954202198,0.30491058,655.93,654.8,0.3052528]
[1746954202394,0.30491058,655.93,654.81,0.3052528]
[1746954202594,0.30491058,655.93,654.82,0.3052528]
[1746954202795,0.30491058,655.93,654.83,1.47646033]
[1746954202993,0.30491058,655.93,654.84,0.3052528]
[1746954203192,0.30491058,655.93,654.85,0.30525256]
[1746954203391,0.30491058,655.93,654.86,0.30525256]
[1746954203595,0.30491058,655.93,654.87,0.30525256]
[1746954203889,0.30491058,655.93,654.88,0.30525256]
[1746954204091,0.30491058,655.93,654.89,0.30525256]
[1746954204292,0.30491058,655.93,654.9,1.47646009]
[1746954204590,0.30491058,655.93,654.91,0.30525256]
[1746954204792,0.30491058,655.93,654.9,1.17120753]
[1746954204793,0.30491058,655.93,654.92,0.30525256]
[1746954205096,0.30491058,655.93,654.93,1.47646009]
[1746954205297,0.30491058,655.93,654.94,0.30525256]
[1746954205497,0.30491058,655.93,654.93,1.17120753]
[1746954205698,0.30491058,655.93,654.94,0.30523356]
[1746954205891,0.30491058,655.93,654.82,1.17120753]
[1746954206095,0.30491058,655.93,654.83,0.30523282]
[1746954206294,0.30491058,655.93,654.81,0.26538853]
[1746954206295,0.30491058,655.93,654.84,1.47644035]
[1746954206493,0.30491058,655.93,654.85,0.30523282]
[1746954206698,0.30491058,655.93,654.86,1.17120753]
[1746954206892,0.30491058,655.93,654.87,0.30523282]
[1746954207299,0.30491058,655.93,654.88,1.17120753]
[1746954207499,0.30491058,655.93,654.89,0.30523282]
[1746954208001,0.30491058,655.93,654.9,1.17120753]
[1746954208200,0.30491058,655.93,654.91,0.30523282]
[1746954208801,0.30491058,655.93,654.92,1.17120753]
[1746954209001,0.30491058,655.93,654.93,0.30523282]
[1746954209397,0.30491058,655.93,654.94,1.17120753]
[1746954210004,0.30491058,655.93,654.95,1.17120753]
[1746954210200,0.30491058,655.93,654.96,1.17120753]
[1746954210800,0.30491058,655.93,654.97,1.17120753]
[1746954211506,0.30491058,655.93,654.98,1.17120753]
[1746954211900,0.30491058,655.93,654.99,1.17120753]
[1746954212707,0.30491058,655.93,655.0,1.17120753]
[1746954213503,0.30491058,655.93,655.01,1.17120753]
[1746954213802,0.30491058,655.93,655.02,1.17120753]
[1746954214407,0.30491058,655.93,655.03,1.17120753]
[1746954214707,0.30491058,655.93,654.71,0.544]
[1746954214902,0.30491058,655.93,654.72,0.30523334]
[1746954215107,0.30491058,655.93,654.73,0.30523334]
[1746954215306,0.30491058,655.93,654.74,1.47530152]
[1746954215505,0.30491058,655.93,654.75,0.30523334]
[1746954215808,0.30491058,655.93,654.76,1.47530152]
[1746954216001,0.30491058,655.93,654.77,0.30523334]
[1746954216201,0.30491058,655.93,654.78,0.30523334]
[1746954216404,0.30491058,655.93,654.79,1.47530152]
[1746954216608,0.30491058,655.93,654.8,0.30523334]
[1746954216804,0.30491058,655.93,654.81,1.47530152]
[1746954217100,0.30491058,655.93,654.82,0.30523334]
[1746954217303,0.30491058,655.93,654.83,0.30523334]
[1746954217502,0.30491058,655.93,654.84,1.47530152]
[1746954217706,0.30491058,655.93,654.85,1.47530152]
[1746954217903,0.30491058,655.93,654.86,0.30523334]
[1746954218108,0.30491058,655.93,654.87,0.30523334]
[1746954218305,0.30491058,655.93,654.88,1.47530152]
[1746954218503,0.30491058,655.93,654.89,0.30523334]
[1746954218806,0.30491058,655.93,654.9,0.30523334]
[1746954219003,0.30491058,655.93,654.91,0.30523334]
[1746954219203,0.30491058,655.93,654.92,0.30523334]
[1746954219407,0.30491058,655.93,654.93,0.30523334]
[1746954219607,0.30491058,655.93,654.94,0.30523334]
[1746954219808,0.30491058,655.93,654.95,1.47530152]
[1746954220008,0.30491058,655.93,654.96,0.30523334]
[1746954220210,0.30491058,655.93,654.97,0.30522239]
[1746954220410,0.30491058,655.93,654.95,1.17006818]
[1746954220411,0.30491058,655.93,654.98,1.47529057]
[1746954220705,0.30491058,655.93,654.98,1.17006818]
[1746954220909,0.30491058,655.93,654.99,1.17006818]
[1746954221110,0.30491058,655.93,654.89,1.17006818]
[1746954221325,0.30491058,655.93,654.9,1.47528475]
[1746954221507,0.30491058,655.93,654.91,0.30521657]
[1746954221707,0.30491058,655.93,654.92,0.30521657]
[1746954221906,0.30491058,655.93,654.93,1.47528475]
[1746954222108,0.30491058,655.93,654.94,0.30521657]
[1746954222311,0.30491058,655.93,654.95,1.47528475]
[1746954222509,0.30491058,655.93,654.96,0.30521657]
[1746954222706,0.30491058,655.93,654.97,0.30521657]
[1746954222911,0.30491058,655.93,654.98,1.47528475]
[1746954223211,0.30491058,655.93,654.98,1.17006818]
[1746954223710,0.30491058,655.93,654.89,1.17006818]
[1746954223910,0.30491058,655.93,654.9,0.30521463]
[1746954224111,0.30491058,655.93,654.91,0.30521463]
[1746954224406,0.30491058,655.93,654.92,0.30521463]
[1746954224612,0.30491058,655.93,654.93,1.17006818]
[1746954224813,0.30491058,655.93,654.94,0.30521463]
[1746954225009,0.30491058,655.93,654.95,1.17006818]
[1746954225213,0.30491058,655.93,654.96,0.30521463]
[1746954225509,0.30491058,655.93,654.97,1.17006818]
[1746954225713,0.30491058,655.93,654.98,0.30521463]
[1746954225912,0.30491058,655.93,654.99,0.30521463]
[1746954226112,0.30491058,655.93,655.0,0.30521463]
[1746954226309,0.30491058,655.93,655.01,1.17006818]
[1746954226717,0.30491058,655.93,654.89,1.17006818]
[1746954226916,0.30491058,655.93,654.9,0.30520654]
[1746954227113,0.30491058,655.93,654.91,0.30520654]
[1746954227316,0.30491058,655.93,654.92,1.47527472]
[1746954227611,0.30491058,655.93,654.93,0.30520654]
[1746954227916,0.30491058,655.93,654.94,1.47527472]
[1746954228212,0.30491058,655.93,654.95,0.30520654]
[1746954228413,0.30491058,655.93,654.96,1.47527472]
[1746954228616,0.30491058,655.93,654.97,0.30520654]
[1746954228919,0.30491058,655.93,654.98,0.30520654]
[1746954229118,0.30491058,655.93,654.99,0.30520654]
[1746954229312,0.30491058,655.93,655.0,0.30520398]
[1746954229513,0.30491058,655.93,654.98,1.17006818]
[1746954229713,0.30491058,655.93,654.99,0.30520395]
[1746954229917,0.30491058,655.93,654.98,1.17006818]
[1746954230118,0.30491058,655.93,654.99,0.30520515]
[1746954230419,0.30491058,655.93,655.0,0.30520558]
[1746954230614,0.30491058,655.93,654.89,1.17006818]
[1746954230814,0.30491058,655.93,654.9,1.47527376]
[1746954231014,0.30491058,655.93,654.91,0.30520558]
[1746954231215,0.30491058,655.93,654.92,0.30520558]
[1746954231419,0.30491058,655.93,654.93,1.47527376]
[1746954231619,0.30491058,655.93,654.94,0.30520558]
[1746954231816,0.30491058,655.93,654.95,0.30520558]
[1746954232019,0.30491058,655.93,654.96,1.47527376]
[1746954232218,0.30491058,655.93,654.97,0.30520558]
[1746954232419,0.30491058,655.93,654.98,0.30520558]
[1746954232719,0.30491058,655.93,654.99,0.30520558]
[1746954233018,0.30491058,655.93,655.0,1.47527376]
[1746954233220,0.30491058,655.93,655.01,0.30520558]
[1746954233419,0.30491058,655.93,655.02,1.47527376]
[1746954233615,0.30491058,655.93,655.02,1.17006818]
[1746954234320,0.30491058,655.93,655.03,0.30520495]
[1746954234622,0.30491058,655.93,655.04,1.17006818]
[1746954234821,0.30491058,655.93,654.89,1.17006818]
[1746954235021,0.30491058,655.93,654.9,0.30520558]
[1746954235217,0.30491058,655.93,654.91,0.30520558]
[1746954235414,0.30491058,655.93,654.92,0.30520558]
[1746954235619,0.30491058,655.93,654.93,1.47527376]
[1746954235821,0.30491058,655.93,654.94,0.30520558]
[1746954236018,0.30491058,655.93,654.95,1.47527376]
[1746954236218,0.30491058,655.93,654.96,0.30520558]
[1746954236418,0.30491058,655.93,654.97,0.30520558]
[1746954236620,0.30491058,655.93,654.98,0.30520558]
[1746954236820,0.30491058,655.93,654.99,0.30520558]
[1746954237018,0.30491058,655.93,655.0,1.47527376]
[1746954237223,0.30491058,655.93,655.01,0.30520558]
[1746954237418,0.30491058,655.93,655.02,0.30520558]
[1746954237616,0.30491058,655.93,655.03,0.30520558]
[1746954237820,0.30491058,655.93,655.04,1.47527376]
[1746954238023,0.30491058,655.93,655.05,0.30520558]
[1746954238222,0.30491058,655.93,655.06,1.47527376]
[1746954238423,0.30491058,655.93,655.07,0.30520558]
[1746954238622,0.30491058,655.93,655.08,0.30520558]
[1746954238922,0.30491058,655.93,655.09,1.47527376]
[1746954239123,0.30491058,655.93,655.1,0.30520558]
[1746954239418,0.30491058,655.93,655.11,1.47527376]
[1746954239623,0.30491058,655.93,655.12,0.30520558]
[1746954239923,0.30491058,655.93,655.13,0.30520558]
[1746954240219,0.30491058,655.93,655.14,1.47527376]
[1746954240424,0.30491058,655.93,655.15,1.47527376]
[1746954240624,0.30491058,655.93,655.16,0.30520558]
[1746954240924,0.30491058,655.93,655.17,0.30520558]
[1746954241225,0.30491058,655.93,655.18,1.47527376]
[1746954241426,0.30491058,655.93,655.19,0.30520558]
[1746954241621,0.30491058,655.93,655.2,1.47527376]
[1746954241821,0.30491058,655.93,655.21,0.30520558]
[1746954242022,0.30491058,655.93,655.2,1.17006818]
[1746954242425,0.30491058,655.93,655.21,0.30516818]
[1746954242625,0.30491058,655.93,655.21,1.17006818]
[1746954243024,0.30491058,655.93,655.22,1.17006818]
[1746954243225,0.30491058,655.93,655.23,1.17006818]
[1746954244026,0.30491058,655.93,655.24,1.17006818]
[1746954244227,0.30491058,655.93,655.25,1.17006818]
[1746954244931,0.30491058,655.93,655.26,1.17006818]
[1746954245226,0.30491058,655.93,655.27,1.17006818]
[1746954245629,0.30491058,655.93,655.28,1.17006818]
[1746954246029,0.30491058,655.93,655.14,0.26527019]
[1746954246226,0.30491058,655.93,655.15,0.30515146]
[1746954246430,0.30491058,655.93,655.16,0.30515146]
[1746954246729,0.30491058,655.93,655.17,1.48004633]
[1746954246929,0.30491058,655.93,655.18,0.30515146]
[1746954247130,0.30491058,655.93,655.19,0.30515146]
[1746954247330,0.30491058,655.93,655.2,0.30515146]
[1746954247532,0.30491058,655.93,655.21,0.30515146]
[1746954247728,0.30491058,655.93,655.22,0.30515146]
[1746954248029,0.30491058,655.93,655.23,1.48004633]
[1746954248230,0.30491058,655.93,655.23,1.17489487]
[1746954248430,0.30491058,655.93,655.24,1.48004891]
[1746954248625,0.30491058,655.93,655.25,0.30515404]
[1746954248828,0.30491058,655.93,655.26,0.30515404]
[1746954249027,0.30491058,655.93,655.27,1.17489487]
[1746954249531,0.30491058,655.93,655.28,1.17489487]
[1746954250529,0.30491058,655.93,655.29,1.17489487]
[1746954251235,0.30491058,655.93,655.3,1.17489487]
[1746954252334,0.30491058,655.93,655.31,1.17489487]
[1746954252734,0.30491058,655.93,655.26,0.543]
[1746954253435,0.30491058,655.93,655.27,1.17432434]
[1746954254036,0.30491058,655.93,655.26,0.543]
[1746954254835,0.30491058,655.93,655.27,1.1742658]
[1746954255137,0.30491058,655.93,655.26,0.543]
[1746954255938,0.30491058,655.93,655.27,1.17427132]
[1746954256633,0.30491058,655.93,655.26,0.543]
[1746954257638,0.30491058,655.93,655.27,1.1743344]
[1746954258335,0.30491058,655.93,655.26,0.543]
[1746954259840,0.30491058,655.93,655.27,1.17438439]
[1746954260535,0.30491058,655.93,655.26,0.543]
[1746954260737,0.30491058,655.93,655.26,0.80826008]
[1746954261842,0.30491058,655.93,655.27,1.17452985]
[1746954262640,0.30491058,655.93,655.26,0.80826008]
[1746954263342,0.30491058,655.93,655.27,1.1746669]
[1746954263841,0.30491058,655.93,655.26,0.543]
[1746954264042,0.30491058,655.93,655.26,0.80826311]
[1746954265945,0.30491058,655.93,655.26,0.26526311]
[1746954266845,0.30491058,655.93,655.27,1.1747992]
[1746954267343,0.30491058,655.93,655.26,0.26526311]
[1746954268643,0.30491058,655.93,655.27,1.17491675]
[1746954269440,0.30491058,655.93,654.69,0.93684805]
[1746954269646,0.30491058,655.93,654.7,0.61065515]
[1746954269844,0.30491058,655.93,655.27,0.543]
[1746954273145,0.30491058,655.93,654.71,0.30547876]
[1746954273439,0.30491058,655.93,654.72,0.30517071]
[1746954273641,0.30491058,655.93,654.73,1.7859519]
[1746954273840,0.30491058,655.93,654.74,0.61063547]
[1746954274045,0.30491058,655.93,654.75,0.6106308]
[1746954274245,0.30491058,655.93,654.76,0.61062614]
[1746954274444,0.30491058,655.93,654.77,0.61062147]
[1746954274644,0.30491058,655.93,654.78,0.61061681]
[1746954274841,0.30491058,655.93,654.79,1.48048247]
[1746954275040,0.30491058,655.93,654.8,0.30517071]
[1746954275245,0.30491058,655.93,654.81,0.30517071]
[1746954275441,0.30491058,655.93,654.82,1.48048247]
[1746954275645,0.30491058,655.93,654.83,0.30517071]
[1746954275845,0.30491058,655.93,654.84,1.48048363]
[1746954276045,0.30491058,655.93,654.85,0.30517187]
[1746954276245,0.30491058,655.93,654.86,1.48048363]
[1746954276443,0.30491058,655.93,654.87,0.30517187]
[1746954276647,0.30491058,655.93,654.88,0.30517187]
[1746954276848,0.30491058,655.93,654.89,1.48048363]
[1746954277147,0.30491058,655.93,654.9,0.30517187]
[1746954277343,0.30491058,655.93,654.91,1.48048363]
[1746954277549,0.30491058,655.93,654.92,0.30517187]
[1746954277748,0.30491058,655.93,654.93,0.30517297]
[1746954277949,0.30491058,655.93,654.94,0.30517297]
[1746954278244,0.30491058,655.93,654.95,0.30517297]
[1746954278449,0.30491058,655.93,654.96,0.30517297]
[1746954278645,0.30491058,655.93,654.97,0.30517297]
[1746954278849,0.30491058,655.93,654.98,1.48048473]
[1746954279047,0.30491058,655.93,654.99,0.30517297]
[1746954279248,0.30491058,655.93,655.0,0.30517297]
[1746954279448,0.30491058,655.93,655.01,1.48048473]
[1746954279648,0.30491058,655.93,655.02,0.30517297]
[1746954279846,0.30491058,655.93,655.03,0.30517297]
[1746954280046,0.30491058,655.93,655.04,1.48048473]
[1746954280346,0.30491058,655.93,655.05,0.30517297]
[1746954280550,0.30491058,655.93,655.06,0.30517297]
[1746954280746,0.30491058,655.93,655.07,1.48048473]
[1746954280945,0.30491058,655.93,655.08,0.30517297]
[1746954281148,0.30491058,655.93,655.09,0.30517297]
[1746954281348,0.30491058,655.93,655.1,0.30517297]
[1746954281552,0.30491058,655.93,655.11,0.30517297]
[1746954281856,0.30491058,655.93,655.12,0.30517297]
[1746954282051,0.30491058,655.93,655.13,0.30517297]
[1746954282251,0.30491058,655.93,655.14,0.30517297]
[1746954282550,0.30491058,655.93,655.15,1.48048473]
[1746954282752,0.30491058,655.93,655.16,0.30517297]
[1746954282949,0.30491058,655.93,655.15,1.17531176]
[1746954282950,0.30491058,655.93,655.17,0.30517297]
[1746954283150,0.30491058,655.93,655.18,0.305158]
[1746954283350,0.30491058,655.93,655.19,1.48046976]
[1746954283550,0.30491058,655.93,655.2,0.305158]
[1746954283752,0.30491058,655.93,655.21,0.305158]
[1746954284050,0.30491058,655.93,655.22,1.48046976]
[1746954284346,0.30491058,655.93,655.23,0.305158]
[1746954284550,0.30491058,655.93,655.24,0.305158]
[1746954284749,0.30491058,655.93,655.25,0.305158]
[1746954284946,0.30491058,655.93,655.26,0.305158]
[1746954285146,0.30491058,655.93,655.27,0.305158]
[1746954285349,0.30491058,655.93,655.28,0.305158]
[1746954285548,0.30491058,655.93,655.29,0.305158]
[1746954285751,0.30491058,655.93,655.3,0.305158]
[1746954285952,0.30491058,655.93,655.31,1.48046976]
[1746954286150,0.30491058,655.93,655.32,0.305158]
[1746954286446,0.30491058,655.93,655.33,1.48046976]
[1746954286746,0.30491058,655.93,655.34,0.305158]
[1746954286951,0.30491058,655.93,655.35,0.305158]
[1746954287151,0.30491058,655.93,655.36,1.17531176]
[1746954287751,0.30491058,655.93,655.37,1.17531176]
[1746954288352,0.30491058,655.93,655.38,1.17531176]
[1746954289046,0.30491058,655.93,655.39,1.17531176]
[1746954289352,0.30491058,655.93,655.4,1.17531176]
[1746954289654,0.30491058,655.93,655.41,1.17531176]
[1746954289849,0.30491058,655.93,655.42,1.17531176]